fUST/lending_fUST_20250530
["ID","MTS","AMOUNT","RATE_DAILY","PERIOD"]
[363047621,1748560246558,-791.38,0.00019726,2]
[363047623,1748560246568,-430.0,0.00019726,2]
[363047625,1748560246578,-2796.38,0.00019726,2]
[363047627,1748560246588,-430.0,0.00019726,2]
[363047629,1748560246598,-1387.58,0.00019726,2]
[363047631,1748560246607,-490.0,0.00019726,2]
[363047633,1748560246617,-430.0,0.00019726,2]
[363047634,1748560246627,-430.0,0.00019726,2]
[363047636,1748560246636,-438.61116084,0.00019726,2]
[363047638,1748560246646,-430.0,0.00019726,2]
[363047640,1748560246656,-430.0,0.00019726,2]
[363047642,1748560246668,-430.0,0.00019726,2]
[363047644,1748560246678,-430.0,0.00019726,2]
[363047646,1748560246688,-430.0,0.00019726,2]
[363047647,1748560246698,-430.0,0.00019726,2]
[363047649,1748560246708,-553.95,0.00019726,2]
[363047651,1748560246718,-430.0,0.00019726,2]
[363047654,1748560246731,-467.19,0.00019726,2]
[363047656,1748560246741,-430.0,0.00019726,2]
[363047658,1748560246750,-1362.85,0.00019726,2]
[363047659,1748560246761,-430.0,0.00019726,2]
[363047661,1748560246771,-430.0,0.00019726,2]
[363047663,1748560246781,-430.0,0.00019726,2]
[363047665,1748560246790,-430.0,0.00019726,2]
[363047667,1748560246800,-430.0,0.00019726,2]
[363047669,1748560246809,-1730.84,0.00019726,2]
[363047671,1748560246819,-1417.51,0.00019726,2]
[363047673,1748560246829,-430.0,0.00019726,2]
[363047675,1748560246838,-430.0,0.00019726,2]
[363047677,1748560246848,-430.0,0.00019726,2]
[363047679,1748560246859,-1437.20728956,0.000199,2]
[363047681,1748560246869,-262.36,0.00019934,2]
[363047683,1748560246878,-842.5625,0.0002,3]
[363047685,1748560246888,-430.0,0.0002,2]
[363047687,1748560246897,-834.0,0.0002,2]
[363047689,1748560246907,-434.28943671,0.0002,2]
[363047691,1748560246916,-430.0,0.0002,2]
[363047692,1748560246926,-430.0,0.0002,2]
[363047694,1748560246936,-430.0,0.0002,2]
[363047696,1748560246946,-430.0,0.0002,2]
[363047698,1748560246956,-430.0,0.0002,2]
[363047700,1748560246965,-430.0,0.0002,2]
[363047702,1748560246975,-430.0,0.0002,2]
[363047704,1748560246984,-410.41959643,0.0002,2]
[363047706,1748560246994,-430.0,0.0002,2]
[363047708,1748560247003,-430.0,0.0002,2]
[363047710,1748560247013,-547.23857157,0.0002,2]
[363047712,1748560247023,-430.0,0.0002,2]
[363047714,1748560247033,-430.0,0.0002,2]
[363047716,1748560247042,-430.0,0.0002,2]
[363047718,1748560247052,-430.0,0.0002,2]
[363047720,1748560247061,-430.0,0.0002,2]
[363047722,1748560247071,-430.0,0.0002,2]
[363047724,1748560247080,-430.0,0.0002,2]
[363047726,1748560247090,-470.0,0.0002,2]
[363047728,1748560247100,-430.0,0.0002,2]
[363047730,1748560247109,-430.0,0.0002,2]
[363047732,1748560247119,-430.0,0.0002,2]
[363047734,1748560247129,-430.0,0.0002,2]
[363047735,1748560247138,-618.03591607,0.0002,2]
[363047737,1748560247148,-430.0,0.0002,2]
[363047739,1748560247158,-500.43,0.0002,2]
[363047741,1748560247168,-632.62,0.0002,2]
[363047743,1748560247177,-430.0,0.0002,2]
[363047756,1748560247313,-430.0,0.0002,2]
[363047757,1748560247334,-430.0,0.0002,2]
[363047758,1748560247343,-550.0,0.0002,2]
[363047759,1748560247352,-430.0,0.0002,2]
[363047760,1748560247361,-430.0,0.0002,2]
[363047761,1748560247370,-711.04,0.0002,2]
[363047762,1748560247379,-450.0,0.0002,2]
[363047763,1748560247389,-400.0,0.0002,2]
[363047764,1748560247402,-430.0,0.0002,2]
[363047765,1748560247411,-430.0,0.0002,2]
[363047766,1748560247420,-430.0,0.0002,2]
[363047767,1748560247429,-430.0,0.0002,2]
[363047768,1748560247440,-450.0,0.0002,2]
[363047769,1748560247449,-430.0,0.0002,2]
[363047770,1748560247459,-430.0,0.0002,2]
[363047771,1748560247469,-430.0,0.0002,2]
[363047772,1748560247479,-473.80888928,0.0002,2]
[363047773,1748560247489,-430.0,0.0002,2]
[363047774,1748560247500,-430.0,0.0002,2]
[363047776,1748560247509,-430.0,0.0002,2]
[363047779,1748560247519,-430.0,0.0002,2]
[363047780,1748560247528,-430.0,0.0002,2]
[363047782,1748560247537,-430.0,0.0002,2]
[363047784,1748560247547,-430.0,0.0002,2]
[363047786,1748560247556,-430.0,0.0002,2]
[363047788,1748560247565,-430.0,0.0002,2]
[363047790,1748560247575,-430.0,0.0002,2]
[363047792,1748560247584,-430.0,0.0002,2]
[363047794,1748560247594,-430.0,0.0002,2]
[363047796,1748560247606,-234.08695977,0.0002,2]
[363047798,1748560247620,-400.0,0.0002,2]
[363047800,1748560247629,-229.06075931,0.0002,2]
[363047803,1748560247639,-575.18,0.0002,2]
[363047805,1748560247649,-430.0,0.0002,2]
[363047807,1748560247658,-430.0,0.0002,2]
[363047809,1748560247668,-430.0,0.0002,2]
[363047810,1748560247677,-430.0,0.0002,2]
[363047812,1748560247687,-430.0,0.0002,2]
[363047815,1748560247697,-430.0,0.0002,2]
[363047816,1748560247706,-430.0,0.0002,2]
[363047818,1748560247715,-430.0,0.0002,2]
[363047820,1748560247725,-480.27,0.0002,2]
[363047822,1748560247735,-430.0,0.0002,2]
[363047824,1748560247744,-1114.65,0.0002,2]
[363047826,1748560247754,-430.0,0.0002,2]
[363047828,1748560247763,-430.0,0.0002,2]
[363047830,1748560247773,-981.66,0.0002,2]
[363047832,1748560247781,-430.0,0.0002,2]
[363047834,1748560247790,-592.44,0.0002,2]
[363047835,1748560247800,-430.0,0.0002,2]
[363047837,1748560247809,-430.0,0.0002,2]
[363047840,1748560247819,-430.0,0.0002,2]
[363047842,1748560247829,-430.0,0.0002,2]
[363047844,1748560247839,-2012.87,0.0002,2]
[363047845,1748560247848,-430.0,0.0002,2]
[363047848,1748560247858,-430.0,0.0002,2]
[363047850,1748560247867,-430.0,0.0002,2]
[363047851,1748560247877,-430.0,0.0002,2]
[363047853,1748560247886,-430.0,0.0002,2]
[363047855,1748560247896,-430.0,0.0002,2]
[363047858,1748560247906,-619.77,0.0002,2]
[363047859,1748560247915,-430.0,0.0002,2]
[363047861,1748560247926,-2347.16,0.0002,2]
[363047863,1748560247935,-430.0,0.0002,2]
[363047866,1748560247945,-1712.96,0.0002,2]
[363047868,1748560247956,-430.0,0.0002,2]
[363047870,1748560247966,-430.0,0.0002,2]
[363047871,1748560247975,-430.0,0.0002,2]
[363047874,1748560247984,-1533.33,0.0002,2]
[363047876,1748560247994,-430.0,0.0002,2]
[363047877,1748560248003,-816.31,0.0002,2]
[363047879,1748560248013,-430.0,0.0002,2]
[363047881,1748560248022,-1208.12,0.0002,2]
[363047883,1748560248032,-906.13,0.0002,2]
[363047886,1748560248042,-484.44,0.0002,2]
[363047889,1748560248061,-5881.26,0.0002,2]
[363047891,1748560248071,-430.0,0.0002,2]
[363047893,1748560248081,-831.06,0.0002,2]
[363047895,1748560248091,-430.0,0.0002,2]
[363047897,1748560248101,-532.49,0.0002,2]
[363047899,1748560248110,-430.0,0.0002,2]
[363047901,1748560248120,-430.0,0.0002,2]
[363047903,1748560248130,-430.0,0.0002,2]
[363047905,1748560248140,-430.0,0.0002,2]
[363047907,1748560248150,-653.52,0.0002,2]
[363047909,1748560248160,-340.0,0.0002,2]
[363047911,1748560248170,-430.0,0.0002,2]
[363047913,1748560248180,-430.0,0.0002,2]
[363047915,1748560248190,-1066.58,0.0002,2]
[363047917,1748560248200,-430.0,0.0002,2]
[363047919,1748560248210,-1238.69,0.0002,2]
[363047921,1748560248220,-2587.05,0.0002,2]
[363047923,1748560248230,-641.83,0.0002,2]
[363047925,1748560248240,-2017.87,0.0002,2]
[363047927,1748560248250,-430.0,0.0002,2]
[363047929,1748560248260,-4011.16,0.0002,2]
[363047931,1748560248270,-430.0,0.0002,2]
[363047933,1748560248280,-430.0,0.0002,2]
[363047935,1748560248290,-430.0,0.0002,2]
[363047937,1748560248299,-739.18,0.0002,2]
[363047939,1748560248309,-430.0,0.0002,2]
[363047941,1748560248319,-430.0,0.0002,2]
[363047943,1748560248328,-3206.85,0.0002,2]
[363047945,1748560248338,-430.0,0.0002,2]
[363047947,1748560248348,-151.93960081,0.0002,2]
[363047949,1748560248358,-430.0,0.0002,2]
[363047951,1748560248367,-726.26,0.0002,2]
[363047954,1748560248377,-430.0,0.0002,2]
[363047956,1748560248387,-430.0,0.0002,2]
[363047957,1748560248402,-430.0,0.0002,2]
[363047959,1748560248412,-430.0,0.0002,2]
[363047961,1748560248422,-791.38,0.0002,2]
[363047963,1748560248432,-430.0,0.0002,2]
[363047965,1748560248441,-2796.38,0.0002,2]
[363047967,1748560248451,-430.0,0.0002,2]
[363047969,1748560248460,-1387.58,0.0002,2]
[363047971,1748560248472,-430.0,0.0002,2]
[363047973,1748560248482,-430.0,0.0002,2]
[363047975,1748560248492,-430.0,0.0002,2]
[363047977,1748560248501,-430.0,0.0002,2]
[363047979,1748560248511,-430.0,0.0002,2]
[363047980,1748560248520,-430.0,0.0002,2]
[363047982,1748560248531,-430.0,0.0002,2]
[363047985,1748560248541,-553.95,0.0002,2]
[363047987,1748560248551,-430.0,0.0002,2]
[363047988,1748560248561,-467.19,0.0002,2]
[363047991,1748560248571,-430.0,0.0002,2]
[363047993,1748560248580,-1362.85,0.0002,2]
[363047995,1748560248590,-430.0,0.0002,2]
[363047997,1748560248599,-534.30512907,0.0002,2]
[363047999,1748560248609,-430.0,0.0002,2]
[363048000,1748560248619,-430.0,0.0002,2]
[363048002,1748560248629,-430.0,0.0002,2]
[363048005,1748560248638,-1730.84,0.0002,2]
[363048006,1748560248648,-1417.51,0.0002,2]
[363048008,1748560248658,-430.0,0.0002,2]
[363048011,1748560248668,-430.0,0.0002,2]
[363048012,1748560248677,-430.0,0.0002,2]
[363048014,1748560248687,-1437.20728948,0.00020072,2]
[363048017,1748560248697,-212.70147903,0.00020144,2]
[363048019,1748560248707,-160.0,0.00020152,2]
[363048020,1748560248716,-160.0,0.00020152,2]
[363048023,1748560248726,-273.75812479,0.00020152,2]
[363048024,1748560248735,-423.31762986,0.00020152,2]
[363048027,1748560248745,-160.0,0.00020152,2]
[363048029,1748560248754,-229.26895353,0.00020152,2]
[363048031,1748560248764,-12660.97845086,0.00020163,2]
[363048033,1748560248773,-806.286185,0.00020187,2]
[363048035,1748560248782,-1437.20728948,0.00020245,2]
[363048037,1748560248791,-151.0,0.00020273,2]
[363048038,1748560248802,-151.0,0.00020273,2]
[363048040,1748560248811,-430.0,0.00020273,2]
[363048042,1748560248821,-430.0,0.00020273,2]
[363048044,1748560248830,-430.0,0.00020273,2]
[363048046,1748560248839,-189.36,0.00020273,2]
[363048048,1748560248849,-430.0,0.00020273,2]
[363048050,1748560248858,-430.0,0.00020273,2]
[363048053,1748560248868,-430.0,0.00020273,2]
[363048054,1748560248877,-803.80191032,0.00020273,2]
[363048056,1748560248887,-430.0,0.00020273,2]
[363048058,1748560248896,-430.0,0.00020273,2]
[363048060,1748560248906,-430.0,0.00020273,2]
[363048062,1748560248915,-430.0,0.00020273,2]
[363048064,1748560248925,-430.0,0.00020273,2]
[363048067,1748560248937,-430.0,0.00020273,2]
[363048069,1748560248947,-430.0,0.00020273,2]
[363048071,1748560248956,-430.0,0.00020273,2]
[363048073,1748560248966,-430.0,0.00020273,2]
[363048075,1748560248975,-430.0,0.00020273,2]
[363048077,1748560248985,-430.0,0.00020273,2]
[363048079,1748560248995,-430.0,0.00020273,2]
[363048081,1748560249005,-500.43,0.00020273,2]
[363048083,1748560249014,-632.62,0.00020273,2]
[363048085,1748560249024,-430.0,0.00020273,2]
[363048087,1748560249034,-430.0,0.00020273,2]
[363048089,1748560249044,-430.0,0.00020273,2]
[363048091,1748560249053,-430.0,0.00020273,2]
[363048093,1748560249063,-430.0,0.00020273,2]
[363048095,1748560249073,-711.04,0.00020273,2]
[363048097,1748560249082,-430.0,0.00020273,2]
[363048099,1748560249092,-430.0,0.00020273,2]
[363048101,1748560249102,-430.0,0.00020273,2]
[363048103,1748560249111,-430.0,0.00020273,2]
[363048105,1748560249121,-430.0,0.00020273,2]
[363048107,1748560249130,-430.0,0.00020273,2]
[363048109,1748560249140,-430.0,0.00020273,2]
[363048111,1748560249150,-430.0,0.00020273,2]
[363048113,1748560249160,-430.0,0.00020273,2]
[363048115,1748560249170,-430.0,0.00020273,2]
[363048117,1748560249179,-430.0,0.00020273,2]
[363048119,1748560249189,-430.0,0.00020273,2]
[363048121,1748560249199,-430.0,0.00020273,2]
[363048123,1748560249208,-430.0,0.00020273,2]
[363048125,1748560249217,-430.0,0.00020273,2]
[363048127,1748560249227,-430.0,0.00020273,2]
[363048129,1748560249237,-430.0,0.00020273,2]
[363048131,1748560249246,-575.18,0.00020273,2]
[363048133,1748560249257,-430.0,0.00020273,2]
[363048135,1748560249266,-430.0,0.00020273,2]
[363048137,1748560249275,-803.80191032,0.00020273,2]
[363048139,1748560249285,-430.0,0.00020273,2]
[363048141,1748560249294,-430.0,0.00020273,2]
[363048143,1748560249304,-430.0,0.00020273,2]
[363048145,1748560249314,-430.0,0.00020273,2]
[363048147,1748560249323,-430.0,0.00020273,2]
[363048149,1748560249333,-480.27,0.00020273,2]
[363048151,1748560249343,-430.0,0.00020273,2]
[363048153,1748560249352,-1114.65,0.00020273,2]
[363048155,1748560249362,-430.0,0.00020273,2]
[363048157,1748560249371,-430.0,0.00020273,2]
[363048159,1748560249380,-981.66,0.00020273,2]
[363048161,1748560249389,-430.0,0.00020273,2]
[363048163,1748560249405,-592.44,0.00020273,2]
[363048165,1748560249414,-430.0,0.00020273,2]
[363048167,1748560249423,-233.09811821,0.00020273,2]
[363048169,1748560249433,-208.73269205,0.00020273,2]
[363048181,1748560249565,-430.0,0.00020273,2]
[363048183,1748560249575,-2012.87,0.00020273,2]
[363048185,1748560249585,-430.0,0.00020273,2]
[363048187,1748560249594,-430.0,0.00020273,2]
[363048189,1748560249603,-430.0,0.00020273,2]
[363048191,1748560249613,-510.0,0.00020273,2]
[363048193,1748560249622,-430.0,0.00020273,2]
[363048195,1748560249631,-619.77,0.00020273,2]
[363048197,1748560249640,-430.0,0.00020273,2]
[363048199,1748560249652,-2347.16,0.00020273,2]
[363048201,1748560249661,-430.0,0.00020273,2]
[363048203,1748560249671,-1712.96,0.00020273,2]
[363048205,1748560249680,-430.0,0.00020273,2]
[363048207,1748560249690,-430.0,0.00020273,2]
[363048209,1748560249699,-430.0,0.00020273,2]
[363048211,1748560249708,-1533.33,0.00020273,2]
[363048213,1748560249718,-816.31,0.00020273,2]
[363048215,1748560249727,-1208.12,0.00020273,2]
[363048217,1748560249736,-906.13,0.00020273,2]
[363048219,1748560249746,-484.44,0.00020273,2]
[363048221,1748560249755,-5881.26,0.00020273,2]
[363048223,1748560249765,-430.0,0.00020273,2]
[363048225,1748560249775,-831.06,0.00020273,2]
[363048227,1748560249784,-430.0,0.00020273,2]
[363048229,1748560249794,-532.49,0.00020273,2]
[363048231,1748560249804,-430.0,0.00020273,2]
[363048233,1748560249813,-430.0,0.00020273,2]
[363048235,1748560249822,-430.0,0.00020273,2]
[363048237,1748560249831,-653.52,0.00020273,2]
[363048239,1748560249841,-430.0,0.00020273,2]
[363048241,1748560249850,-1066.58,0.00020273,2]
[363048243,1748560249859,-430.0,0.00020273,2]
[363048245,1748560249869,-1238.69,0.00020273,2]
[363048247,1748560249878,-467.50612938,0.00020273,2]
[363048267,1748560250067,-2119.54387062,0.00020273,2]
[363048269,1748560250081,-641.83,0.00020273,2]
[363048271,1748560250090,-2017.87,0.00020273,2]
[363048273,1748560250099,-430.0,0.00020273,2]
[363048275,1748560250108,-4011.16,0.00020273,2]
[363048277,1748560250118,-430.0,0.00020273,2]
[363048279,1748560250127,-739.18,0.00020273,2]
[363048281,1748560250136,-3206.85,0.00020273,2]
[363048283,1748560250145,-430.0,0.00020273,2]
[363048285,1748560250154,-430.0,0.00020273,2]
[363048287,1748560250164,-430.0,0.00020273,2]
[363048289,1748560250173,-726.26,0.00020273,2]
[363048291,1748560250182,-430.0,0.00020273,2]
[363048293,1748560250190,-430.0,0.00020273,2]
[363048295,1748560250199,-791.38,0.00020273,2]
[363048297,1748560250208,-430.0,0.00020273,2]
[363048299,1748560250218,-2796.38,0.00020273,2]
[363048301,1748560250229,-1387.58,0.00020273,2]
[363048303,1748560250239,-430.0,0.00020273,2]
[363048304,1748560250247,-430.0,0.00020273,2]
[363048306,1748560250257,-430.0,0.00020273,2]
[363048307,1748560250266,-430.0,0.00020273,2]
[363048309,1748560250275,-430.0,0.00020273,2]
[363048311,1748560250284,-430.0,0.00020273,2]
[363048313,1748560250294,-430.0,0.00020273,2]
[363048315,1748560250303,-553.95,0.00020273,2]
[363048317,1748560250313,-430.0,0.00020273,2]
[363048319,1748560250322,-467.19,0.00020273,2]
[363048321,1748560250331,-430.0,0.00020273,2]
[363048323,1748560250340,-1362.85,0.00020273,2]
[363048325,1748560250350,-430.0,0.00020273,2]
[363048327,1748560250359,-430.0,0.00020273,2]
[363048329,1748560250368,-430.0,0.00020273,2]
[363048331,1748560250378,-430.0,0.00020273,2]
[363048333,1748560250388,-1730.84,0.00020273,2]
[363048335,1748560250402,-1417.51,0.00020273,2]
[363048337,1748560250411,-430.0,0.00020273,2]
[363048339,1748560250420,-430.0,0.00020273,2]
[363048341,1748560250430,-430.0,0.00020273,2]
[363048343,1748560250440,-176.70832624,0.00020298,2]
[363048345,1748560250449,-672.392,0.00020298,2]
[363048347,1748560250458,-1437.20728948,0.00020417,3]
[363048349,1748560250469,-430.0,0.00020547,2]
[363048351,1748560250479,-489.30605409,0.00020547,2]
[363048353,1748560250488,-430.0,0.00020547,2]
[363048355,1748560250497,-430.0,0.00020547,2]
[363048357,1748560250507,-430.0,0.00020547,2]
[363048359,1748560250516,-430.0,0.00020547,2]
[363048361,1748560250524,-430.0,0.00020547,2]
[363048363,1748560250534,-430.0,0.00020547,2]
[363048365,1748560250543,-430.0,0.00020547,2]
[363048367,1748560250552,-430.0,0.00020547,2]
[363048369,1748560250561,-430.0,0.00020547,2]
[363048371,1748560250571,-430.0,0.00020547,2]
[363048373,1748560250580,-397.33367671,0.00020547,2]
[363048375,1748560250591,-430.0,0.00020547,2]
[363048377,1748560250601,-510.0,0.00020547,2]
[363048379,1748560250610,-430.0,0.00020547,2]
[363048381,1748560250619,-430.0,0.00020547,2]
[363048383,1748560250628,-500.43,0.00020547,2]
[363048385,1748560250637,-632.62,0.00020547,2]
[363048387,1748560250647,-430.0,0.00020547,2]
[363048388,1748560250656,-430.0,0.00020547,2]
[363048390,1748560250666,-430.0,0.00020547,2]
[363048392,1748560250676,-430.0,0.00020547,2]
[363048394,1748560250686,-430.0,0.00020547,2]
[363048396,1748560250696,-711.04,0.00020547,2]
[363048398,1748560250705,-430.0,0.00020547,2]
[363048400,1748560250715,-510.0,0.00020547,2]
[363048402,1748560250724,-430.0,0.00020547,2]
[363048404,1748560250733,-430.0,0.00020547,2]
[363048406,1748560250743,-425.28919822,0.00020547,2]
[363048408,1748560250752,-430.0,0.00020547,2]
[363048410,1748560250761,-430.0,0.00020547,2]
[363048412,1748560250771,-430.0,0.00020547,2]
[363048414,1748560250781,-430.0,0.00020547,2]
[363048416,1748560250790,-430.0,0.00020547,2]
[363048417,1748560250799,-430.0,0.00020547,2]
[363048419,1748560250808,-380.0,0.00020547,2]
[363048421,1748560250819,-430.0,0.00020547,2]
[363048423,1748560250828,-430.0,0.00020547,2]
[363048425,1748560250837,-400.0,0.00020547,2]
[363048427,1748560250847,-430.0,0.00020547,2]
[363048429,1748560250856,-575.18,0.00020547,2]
[363048431,1748560250865,-430.0,0.00020547,2]
[363048433,1748560250874,-430.0,0.00020547,2]
[363048434,1748560250884,-301.28,0.00020547,2]
[363048436,1748560250893,-430.0,0.00020547,2]
[363048438,1748560250903,-430.0,0.00020547,2]
[363048440,1748560250913,-480.27,0.00020547,2]
[363048442,1748560250922,-430.0,0.00020547,2]
[363048444,1748560250932,-1114.65,0.00020547,2]
[363048446,1748560250940,-191.37341072,0.00020547,2]
[363048448,1748560250949,-430.0,0.00020547,2]
[363048450,1748560250959,-981.66,0.00020547,2]
[363048452,1748560250968,-572.96,0.00020547,2]
[363048454,1748560250977,-592.44,0.00020547,2]
[363048455,1748560250986,-430.0,0.00020547,2]
[363048457,1748560250995,-2012.87,0.00020547,2]
[363048459,1748560251005,-430.0,0.00020547,2]
[363048461,1748560251014,-430.0,0.00020547,2]
[363048463,1748560251024,-430.0,0.00020547,2]
[363048465,1748560251034,-430.0,0.00020547,2]
[363048467,1748560251043,-619.77,0.00020547,2]
[363048469,1748560251052,-430.0,0.00020547,2]
[363048471,1748560251062,-2347.16,0.00020547,2]
[363048473,1748560251071,-430.0,0.00020547,2]
[363048475,1748560251080,-1712.96,0.00020547,2]
[363048477,1748560251090,-430.0,0.00020547,2]
[363048479,1748560251099,-430.0,0.00020547,2]
[363048481,1748560251108,-575.12192138,0.00020547,2]
[363048482,1748560251118,-1533.33,0.00020547,2]
[363048484,1748560251127,-816.31,0.00020547,2]
[363048486,1748560251136,-1208.12,0.00020547,2]
[363048488,1748560251145,-906.13,0.00020547,2]
[363048490,1748560251155,-484.44,0.00020547,2]
[363048492,1748560251164,-5881.26,0.00020547,2]
[363048494,1748560251173,-430.0,0.00020547,2]
[363048496,1748560251183,-831.06,0.00020547,2]
[363048498,1748560251192,-430.0,0.00020547,2]
[363048500,1748560251201,-532.49,0.00020547,2]
[363048501,1748560251210,-430.0,0.00020547,2]
[363048503,1748560251219,-430.0,0.00020547,2]
[363048515,1748560251327,-430.0,0.00020547,2]
[363048517,1748560251338,-653.52,0.00020547,2]
[363048519,1748560251347,-430.0,0.00020547,2]
[363048521,1748560251357,-1066.58,0.00020547,2]
[363048523,1748560251366,-430.0,0.00020547,2]
[363048525,1748560251376,-1238.69,0.00020547,2]
[363048527,1748560251385,-2587.05,0.00020547,2]
[363048528,1748560251397,-641.83,0.00020547,2]
[363048530,1748560251408,-2017.87,0.00020547,2]
[363048532,1748560251417,-4011.16,0.00020547,2]
[363048534,1748560251427,-430.0,0.00020547,2]
[363048536,1748560251437,-739.18,0.00020547,2]
[363048538,1748560251447,-3206.85,0.00020547,2]
[363048540,1748560251456,-430.0,0.00020547,2]
[363048542,1748560251466,-726.26,0.00020547,2]
[363048544,1748560251476,-430.0,0.00020547,2]
[363048546,1748560251487,-430.0,0.00020547,2]
[363048548,1748560251498,-791.38,0.00020547,2]
[363048550,1748560251508,-430.0,0.00020547,2]
[363048552,1748560251517,-2796.38,0.00020547,2]
[363048554,1748560251527,-1387.58,0.00020547,2]
[363048555,1748560251536,-430.0,0.00020547,2]
[363048557,1748560251546,-430.0,0.00020547,2]
[363048559,1748560251556,-430.0,0.00020547,2]
[363048561,1748560251566,-430.0,0.00020547,2]
[363048563,1748560251575,-430.0,0.00020547,2]
[363048565,1748560251585,-529.73102999,0.00020547,2]
[363048567,1748560251595,-553.95,0.00020547,2]
[363048569,1748560251605,-467.19,0.00020547,2]
[363048571,1748560251615,-430.0,0.00020547,2]
[363048573,1748560251624,-1362.85,0.00020547,2]
[363048575,1748560251634,-430.0,0.00020547,2]
[363048577,1748560251644,-430.0,0.00020547,2]
[363048579,1748560251657,-430.0,0.00020547,2]
[363048581,1748560251666,-430.0,0.00020547,2]
[363048583,1748560251675,-1730.84,0.00020547,2]
[363048585,1748560251684,-1417.51,0.00020547,2]
[363048586,1748560251694,-430.0,0.00020547,2]
[363048588,1748560251704,-430.0,0.00020547,2]
[363048590,1748560251714,-430.0,0.00020547,2]
[363048592,1748560251724,-300.0,0.00020586,2]
[363048594,1748560251734,-300.0,0.00020586,2]
[363048596,1748560251743,-300.0,0.00020586,2]
[363048598,1748560251752,-300.0,0.00020586,2]
[363048600,1748560251761,-300.0,0.00020586,2]
[363048602,1748560251771,-300.0,0.00020586,2]
[363048604,1748560251780,-207.4,0.00020586,2]
[363048606,1748560251790,-300.0,0.00020586,2]
[363048608,1748560251800,-300.0,0.00020586,2]
[363048610,1748560251809,-300.0,0.00020586,2]
[363048612,1748560251818,-300.0,0.00020586,2]
[363048613,1748560251827,-300.0,0.00020586,2]
[363048615,1748560251836,-300.0,0.00020586,2]
[363048617,1748560251846,-300.0,0.00020586,2]
[363048619,1748560251856,-300.0,0.00020586,2]
[363048621,1748560251865,-300.0,0.00020586,2]
[363048623,1748560251875,-1437.20728948,0.0002059,3]
[363048625,1748560251886,-291.51,0.00020622,2]
[363048627,1748560251895,-1437.20728948,0.00020762,3]
[363048629,1748560251906,-151.0,0.00020821,2]
[363048631,1748560251915,-151.0,0.00020821,2]
[363048633,1748560251924,-430.0,0.00020821,2]
[363048635,1748560251933,-430.0,0.00020821,2]